[Event "Susha Chess Blitz 2022"]
[Site "Shusha"]
[Date "2022.09.24"]
[Round "11"]
[White "Vidit, Santosh Gujrathi"]
[Black "Wang, Hao"]
[Result "1-0"]
[ECO "E10"]
[WhiteElo "2710"]
[BlackElo "2722"]
[Annotator "TA"]
[PlyCount "125"]
[EventDate "2022.09.24"]
[EventType "tourn"]
[EventCountry "AZE"]
[SourceTitle "playchess.com"]
[Source "ChessBase"]
[SourceQuality "1"]
[TimeControl "180+2"]

{[%evp 11,125,-10,-8,-17,-16,-14,0,0,-9,-19,0,-51,-22,-57,-63,-58,-49,-40,-37,-49,-48,-135,-137,-141,-150,-138,-142,-151,-93,-125,-32,-31,16,0,81,0,0,-9,112,92,100,89,72,0,0,0,0,-8,0,0,0,0,62,62,62,62,127,47,49,29,110,77,77,42,126,57,95,5,0,10,7,0,0,0,9,0,21,0,20,0,12,5,29,36,50,50,50,29,133,114,140,116,260,253,275,275,302,282,318,318,316,310,419,415,422,397,388,333,428,365,525,422,523,522,495,411]} 1. d4 {[%emt 0:00:01]} Nf6 {[%emt 0:00:01]} 2. c4 {[%emt 0:00:01]} e6 {[%emt 0:00:01]} 3. Nf3 {[%emt 0:00:01]} d5 {[%emt 0:00:01]} 4. e3 {[%emt 0:00:01]} b6 {[%emt 0:00:02]} 5. Nc3 {[%emt 0:00:02]} Bd6 {[%emt 0:00:01]} 6. cxd5 {[%emt 0:00:02]} exd5 {[%emt 0:00:02]} 7. Bb5+ {[%emt 0:00:01] D35: Queen's Gambit Declined: Exchange Variation.} c6 {[%emt 0:00:02]} 8. Bd3 {[%emt 0:00:00]} O-O {[%emt 0:00:04]} 9. O-O {[%emt 0:00:02] The position is equal.} Re8 {[%emt 0:00:01] Against e4} 10. Qc2 {[%emt 0:00:02]} Bg4 {[%emt 0:00:08] [#]} 11. Bd2 $146 {[%emt 0:00:07]} (11. e4 $11) ({Predecessor:} 11. Ne1 c5 12. f3 Bh5 13. Qf2 cxd4 14. exd4 Nc6 15. Kh1 h6 16. g4 Bg6 17. g5 hxg5 18. Bxg6 fxg6 19. Bxg5 {1-0 (40) Etzold,E (1992)-Loehr,H (1743) Altenkirchen 2021}) 11... Nbd7 {[%emt 0:00:08]} (11... Bxf3 $5 12. gxf3 c5 $11) 12. Ne2 {[%emt 0:00:04]} c5 {[%emt 0:00:05]} 13. Bf5 {[%emt 0:00:07]} Bxf3 {[%emt 0:00:07]} (13... h5 {feels hotter.} 14. Bxg4 hxg4 15. Ng5 cxd4 16. Nxd4 Rc8) 14. gxf3 {[%emt 0:00:01]} Nf8 {[%emt 0:00:04]} 15. f4 {[%emt 0:00:12]} Ng6 {[%emt 0:00:04]} 16. Ng3 {[%emt 0:00:11]} (16. f3 $15) 16... cxd4 $17 {[%emt 0:00:03]} 17. Kh1 {[%emt 0:00:03]} dxe3 {[%emt 0:00:17]} 18. fxe3 {[%emt 0:00:01]} Nh4 {[%emt 0:00:03]} 19. Bh3 {[%emt 0:00:10]} Ne4 {[%emt 0:00:05]} (19... Qe7 $142 {Strongly threatening ...Qb7.} 20. Bc3 Rad8) 20. Rad1 {[%emt 0:00:04]} Qf6 {[%emt 0:00:30]} (20... Nxd2 $17 21. Qxd2 Bc5) 21. Nxe4 $15 {[%emt 0:00:06]} dxe4 {[%emt 0:00:02]} (21... Rxe4 $15 22. Qc6 Rd8) 22. Bc3 {[%emt 0:00:02]} Qh6 {[%emt 0:00:02]} (22... Qe7 $1 $11) 23. Rg1 {[%emt 0:00:05]} ({White should play} 23. Bd7 $1 $16 {[%cal Rd7e8]} Bf8 24. Bxe8 Rxe8 25. Qa4) 23... Bf8 $1 $11 {[%emt 0:00:01]} 24. Rg3 {[%emt 0:00:06]} Nf3 {[%emt 0:00:05]} (24... Rad8 $11 {keeps the balance.}) 25. Bf5 $1 $16 {[%emt 0:00:14] Black must now prevent Rh3. This bishop pair is nice.} Rad8 {[%emt 0:00:09] ( -> ...Rxd1+)} 26. Rh3 $36 {[%emt 0:00:13][%mdl 2048] White is on the roll.} ({Much less strong is} 26. Rxd8 Rxd8 27. Rh3 Nh4 28. Bxe4 Be7 $14) 26... Nh4 {[%emt 0:00:05] ...Qh5 is the strong threat.} 27. Rxd8 {[%emt 0:00:45]} (27. Rg1 $16) 27... Rxd8 $11 {[%emt 0:00:02]} 28. Bxe4 {[%emt 0:00:23][%cal Bf5e4,Be4f3,Bf3d5,Bd5e6][%mdl 32]} Be7 {[%emt 0:00:14]} 29. Bd4 {[%emt 0:00:04]} g6 {[%emt 0:00:13]} 30. Qc7 {[%emt 0:00:12]} Bf6 {[%emt 0:00:13][%cal Oh6h5] And now ...Qh5! would win.} 31. Bf3 {[%emt 0:00:12] Prevents Qh5.} Rxd4 {[%emt 0:00:17]} (31... Qf8 $1 $11 32. Bxf6 Rc8 33. Qxc8 Qxc8 34. Rxh4 Qc1+ 35. Kg2 Qd2+ 36. Kg3 Qxe3) 32. exd4 $14 {[%emt 0:00:02]} Qf8 {[%emt 0:00:02] Against Qc8} 33. Bd5 {[%emt 0:00:06]} ({But not} 33. Qxa7 Qb4 34. Qa8+ Kg7 $15) 33... Nf5 {[%emt 0:00:09]} (33... Kg7 $1 $14) 34. Qd7 {[%emt 0:00:03]} ({White should try} 34. Qxa7 $16 {Threatens to win with Rc3.} Bxd4 35. b3) 34... Bxd4 {[%emt 0:00:08]} 35. b3 {[%emt 0:00:09]} h5 {[%emt 0:00:08]} (35... a5 $11) 36. Rd3 {[%emt 0:00:03]} Kg7 {[%emt 0:00:03]} 37. Rd1 {[%emt 0:00:08]} (37. Be4 $5 {[%cal Rd3d4]}) 37... Be3 {[%emt 0:00:09]} (37... Bc5 $14) 38. Be6 {[%emt 0:00:04]} (38. Qxa7 $16 {[%cal Od5f7]} Bxf4 39. Bxf7 $1 {[%mdl 512]} (39. Qxb6 Qe7 $16)) 38... Qa8+ {[%emt 0:00:04] [#]} 39. Qd5 {[%emt 0:00:03]} ({Better is} 39. Rd5 $1 $16 Nh6 40. f5) 39... Qxd5+ $11 {[%emt 0:00:03]} 40. Bxd5 {[%emt 0:00:01]} Bxf4 {[%emt 0:00:01][%mdl 4096] Endgame KRB-KBN} 41. Be4 {[%emt 0:00:03]} Nd6 {[%emt 0:00:02]} 42. Bc6 {[%emt 0:00:02]} Kf6 {[%emt 0:00:02]} 43. Kg2 {[%emt 0:00:02]} h4 {[%emt 0:00:02]} 44. h3 {[%emt 0:00:01][%mdl 1024] White has compensation.} g5 {[%emt 0:00:01]} 45. Kf3 {[%emt 0:00:02]} Ke7 {[%emt 0:00:02]} 46. Re1+ {[%emt 0:00:02]} Kd8 {[%emt 0:00:02]} 47. a4 {[%emt 0:00:04]} Kc7 {[%emt 0:00:02]} 48. Bd5 {[%emt 0:00:01]} Kd7 {[%emt 0:00:01] Against Re7+} 49. Kg4 {[%emt 0:00:03]} f5+ {[%emt 0:00:02] [#]} (49... f6 $11) 50. Kh5 $1 $16 {[%emt 0:00:02] White has more active pieces.} Bg3 {[%emt 0:00:03]} 51. Rf1 {[%emt 0:00:04]} Ke7 {[%emt 0:00:01]} (51... Bf4 $16 {was necessary.}) 52. Kxg5 $18 {[%emt 0:00:02]} a5 {[%emt 0:00:03]} 53. Rc1 {[%emt 0:00:02]} Kd7 {[%emt 0:00:03]} 54. Rc6 {[%emt 0:00:02]} Bf2 {[%emt 0:00:01]} 55. Rc2 {[%emt 0:00:02]} Bg3 {[%emt 0:00:01]} 56. Kf6 {[%emt 0:00:02]} Bf4 {[%emt 0:00:06]} 57. Be6+ {[%emt 0:00:01]} Kd8 {[%emt 0:00:01]} 58. Bxf5 {[%emt 0:00:02]} Bg3 {[%emt 0:00:05]} 59. Bg4 {[%emt 0:00:01]} Bf4 {[%emt 0:00:01]} 60. Kg6 {[%emt 0:00:03]} Nb7 {[%emt 0:00:03]} (60... Bg3 $142 61. Rc6 b5) 61. Rc8+ {[%emt 0:00:02] White is clearly winning.} Ke7 {[%emt 0:00:01]} 62. Rc6 {[%emt 0:00:01]} Nc5 {[%emt 0:00:04]} 63. Rxb6 {[%emt 0:00:02] White used his chance.  Weighted Error Value: White=0.19 (very precise) /Black=0.30} 1-0

[Event "Susha Chess Blitz 2022"]
[Site "Shusha"]
[Date "2022.09.24"]
[Round "11"]
[White "Yilmaz, Mustafa"]
[Black "Guseinov, Gadir"]
[Result "0-1"]
[ECO "E94"]
[WhiteElo "2633"]
[BlackElo "2661"]
[Annotator "TA"]
[PlyCount "86"]
[EventDate "2022.09.24"]
[EventType "tourn"]
[EventCountry "AZE"]
[SourceTitle "playchess.com"]
[Source "ChessBase"]
[SourceQuality "1"]
[TimeControl "180+2"]

{[%evp 20,86,39,28,22,36,44,27,39,21,37,32,47,42,60,55,59,55,37,12,10,10,8,0,0,0,0,-168,-137,-301,-299,-283,97,88,255,-190,-171,-211,-173,-174,-142,-152,-147,-246,-249,-289,-270,-298,-285,-295,-285,-252,-229,-265,-244,-445,-387,-2450,-2345,-12836,-12836,-12834,-12835,-12820,-5611,-5614,-1842,-704,-664]} 1. d4 {[%emt 0:00:02]} Nf6 {[%emt 0:00:02]} 2. c4 {[%emt 0:00:02]} g6 {[%emt 0:00:02]} 3. Nc3 {[%emt 0:00:02]} Bg7 {[%emt 0:00:02]} 4. e4 {[%emt 0:00:02]} d6 {[%emt 0:00:02]} 5. Nf3 {[%emt 0:00:02][%cal Bg1f3,Bf3d4,Bd4c2][%mdl 32]} O-O {[%emt 0:00:02]} 6. Be2 {[%emt 0:00:02]} e5 {[%emt 0:00:02]} 7. O-O {[%emt 0:00:02]} exd4 {[%emt 0:00:02]} 8. Nxd4 {[%emt 0:00:02]} Re8 {[%emt 0:00:02]} 9. f3 {[%emt 0:00:02]} c6 {[%emt 0:00:07]} 10. Nc2 {[%emt 0:00:08]} Na6 {[%emt 0:00:02]} 11. Kh1 {[%emt 0:00:02]} Nc7 {[%emt 0:00:02] E94: King's Indian: Classical: 6 Be2 e5 7 0-0: Various Black 7th moves.} 12. Bg5 {[%emt 0:00:02] now scores much better than the old 12.Bf4.} h6 {[%emt 0:00:01]} 13. Bh4 {[%emt 0:00:02] [#]} a6 $5 $146 {[%emt 0:00:01][%mdl 8] White has an edge. An interesting novelty.} ({Predecessor:} 13... d5 14. f4 dxe4 15. Qxd8 Rxd8 16. Nxe4 Re8 17. Nxf6+ Bxf6 18. Bxf6 Rxe2 19. Nd4 Re4 {1-0 (48) Navara,D (2697)-Jones,G (2670) Tornelo INT 2020}) 14. a4 {[%emt 0:00:22]} (14. Qd3 $5 {[%cal Ra1d1]}) 14... d5 {[%emt 0:00:15]} 15. cxd5 {[%emt 0:00:02]} cxd5 {[%emt 0:00:02]} 16. Qe1 {[%emt 0:00:12]} Bd7 {[%emt 0:00:01]} 17. Rd1 $1 {[%emt 0:00:22]} g5 {[%emt 0:00:02]} 18. Bg3 {[%emt 0:00:02]} Nh5 {[%emt 0:00:01]} (18... dxe4 $2 19. fxe4 Qc8 20. Qf2 $18) 19. f4 {[%emt 0:00:31]} Nxf4 {[%emt 0:00:11]} 20. Bxf4 {[%emt 0:00:03]} gxf4 {[%emt 0:00:01]} 21. Rxf4 {[%emt 0:00:05]} Ne6 $1 {[%emt 0:00:24]} 22. Rf1 {[%emt 0:00:14]} d4 {[%emt 0:00:00]} 23. Nd5 {[%emt 0:00:27]} (23. Qf2 $11) 23... Bxa4 {[%emt 0:00:01]} 24. Bd3 {[%emt 0:00:07]} (24. b3 $17 Bxb3 25. Nf6+ Bxf6 26. Qg3+ Bg7 27. Qxb3) 24... Nc5 $19 {[%emt 0:00:19]} 25. Qf2 {[%emt 0:00:16]} Nxd3 {[%emt 0:00:02] The board is on fire.} ({Black should try} 25... Kh8 $19 {...Rc8 is the strong threat.} 26. Nf4 Rc8) 26. Rxd3 $16 {[%emt 0:00:04]} Bxc2 $2 {[%emt 0:00:07]} (26... Rxe4 $16 27. Rg3 Qxd5) 27. Qxc2 $4 {[%emt 0:00:21][%mdl 8192]} (27. Rg3 $18 Kh8 28. Qxc2) 27... Rxe4 $19 {[%emt 0:00:07]} 28. Qb3 {[%emt 0:00:01]} b5 {[%emt 0:01:07]} 29. Rg3 {[%emt 0:00:09][%cal Ob3f3] [#] Black must now prevent Qf3!} Ra7 {[%emt 0:00:05]} 30. h3 {[%emt 0:00:03] Hoping for Nf6+.} Kh8 {[%emt 0:00:06]} 31. Nb4 {[%emt 0:00:03]} (31. Rxg7 $17 {might work better.} Kxg7 32. Nf6) 31... Qe8 {[%emt 0:00:06]} 32. Qd5 {[%emt 0:00:03]} Re1 {[%emt 0:00:04]} 33. Rgf3 {[%emt 0:00:01]} Rd7 {[%emt 0:00:04]} 34. Qc6 {[%emt 0:00:03]} Rxf1+ {[%emt 0:00:10]} 35. Rxf1 Qe6 36. Qa8+ {[%emt 0:00:08]} Kh7 {[%emt 0:00:01]} 37. Nxa6 $2 {[%emt 0:00:00]} (37. Qf3) 37... Qe2 {[%emt 0:00:04]} 38. Rb1 {[%emt 0:00:04]} (38. Qf3 Qxf3 39. gxf3) 38... d3 {[%emt 0:00:01] ( -> ...d2). Black is clearly winning.} 39. Nc5 {[%emt 0:00:01] [#]} d2 $1 {[%emt 0:00:03]} 40. Nxd7 {[%emt 0:00:03]} d1=Q+ {[%emt 0:00:02]} 41. Rxd1 {[%emt 0:00:01]} Qxd1+ {[%emt 0:00:01]} 42. Kh2 {[%emt 0:00:01]} Qxd7 {[%emt 0:00:01]} 43. Qe4+ {[%emt 0:00:02]} f5 {[%emt 0:00:01] Weighted Error Value: White=0.70/Black=0.32} 0-1

[Event "Susha Chess Blitz 2022"]
[Site "Shusha"]
[Date "2022.09.24"]
[Round "11"]
[White "Durarbayli, Vasif"]
[Black "Kasimdzhanov, Rustam"]
[Result "1-0"]
[ECO "B12"]
[WhiteElo "2628"]
[BlackElo "2670"]
[Annotator "TA"]
[PlyCount "83"]
[EventDate "2022.09.24"]
[EventType "tourn"]
[EventCountry "AZE"]
[SourceTitle "playchess.com"]
[Source "ChessBase"]
[SourceQuality "1"]
[TimeControl "180+2"]

{[%evp 11,83,29,27,8,27,43,52,44,79,71,68,50,53,48,55,42,47,6,35,22,62,52,78,0,0,0,17,19,27,0,18,8,0,0,16,17,91,87,93,92,99,96,133,135,150,150,150,143,143,143,142,142,142,142,142,142,142,142,142,142,173,173,172,172,172,173,741,741,652,727,729,688,683,657]} 1. e4 {[%emt 0:00:00]} c6 {[%emt 0:00:01]} 2. d4 {[%emt 0:00:02]} d5 3. e5 Bf5 {[%emt 0:00:03]} 4. Nf3 {[%emt 0:00:01]} e6 {[%emt 0:00:01]} 5. Be2 {[%emt 0:00:02]} Nd7 {[%emt 0:00:03]} 6. O-O Ne7 7. a4 {[%emt 0:00:07] B12: Caro-Kann: Advance Variation.} h6 {[%emt 0:00:05]} 8. a5 {[%emt 0:00:02]} a6 {[%emt 0:00:01]} 9. b4 {[%emt 0:00:01] Against c5. White is slightly better.} Nc8 {[%emt 0:00:01][%cal Be7c8,Bc8a7,Ba7b5][%mdl 32]} 10. c3 {[%emt 0:00:01]} Na7 {[%emt 0:00:01]} 11. Bd3 {[%emt 0:00:10]} Bxd3 {[%emt 0:00:07]} 12. Qxd3 {[%emt 0:00:01]} Nb5 {[%emt 0:00:01]} 13. Re1 {[%emt 0:00:13] [#]} (13. Ne1 {seems wilder.} Qh4 14. Na3 f5 15. f4) 13... Be7 $146 {[%emt 0:00:01]} ({Predecessor:} 13... Qe7 14. Nbd2 O-O-O 15. Nb3 f5 16. exf6 gxf6 17. Bf4 Bg7 18. Bg3 Rde8 19. c4 dxc4 20. Qxc4 {1-0 (59) Garcia Ramos,D (2380)-Molina,R (2434) Chess.com INT 2020}) 14. Nbd2 {[%emt 0:00:03][%cal Bb1d2,Bd2f1,Bf1g3][%mdl 32]} Nf8 {[%emt 0:00:06]} 15. Nf1 {[%emt 0:00:12]} Nh7 {[%emt 0:00:09]} 16. Ng3 {[%emt 0:00:07] White is more active.} Ng5 {[%emt 0:00:04]} 17. Bxg5 {[%emt 0:00:26]} (17. Nd2 $16) 17... hxg5 $11 {[%emt 0:00:04]} 18. h3 {[%emt 0:00:01]} Qd7 {[%emt 0:00:13]} 19. Qe3 {[%emt 0:00:14]} Qd8 {[%emt 0:00:17]} 20. Nf1 {[%emt 0:00:12]} Kd7 {[%emt 0:00:06]} 21. N1d2 {[%emt 0:00:05]} g4 {[%emt 0:00:16]} 22. hxg4 Qg8 $1 23. Qd3 $36 {[%emt 0:00:15][%mdl 2048] Black is under pressure.} g6 {[%emt 0:00:02]} (23... Rf8 $11) 24. Kf1 {[%emt 0:00:20] White now steadily converts the win.} Qh7 {[%emt 0:00:02]} 25. Ke2 {[%emt 0:00:01]} Qh6 {[%emt 0:00:00] [#]} 26. Nf1 $1 {[%emt 0:00:12]} Qf4 {[%emt 0:00:16]} 27. Ne3 {[%emt 0:00:01]} Rh7 {[%emt 0:00:08]} 28. Rh1 {[%emt 0:00:08] Prevents Qh6.} Rah8 {[%emt 0:00:03]} 29. g3 {[%emt 0:00:14]} Qe4 {[%emt 0:00:27]} 30. Rxh7 {[%emt 0:00:01] Chess con chili.} Rxh7 {[%emt 0:00:03]} 31. Rc1 {[%emt 0:00:05] aiming for Qxe4.} Qxd3+ {[%emt 0:00:27]} 32. Kxd3 {[%emt 0:00:01]} Kc7 {[%emt 0:00:02]} 33. g5 {[%emt 0:00:05]} Rh5 {[%emt 0:00:03]} 34. Ng4 {[%emt 0:00:05]} Rh8 {[%emt 0:00:31]} (34... Bxg5 $2 35. Nxg5 Rxg5 36. Nf6) 35. Ra1 {[%emt 0:00:22]} Na7 {[%emt 0:00:09]} 36. Nh6 {[%emt 0:00:01]} Rh7 {[%emt 0:00:04]} 37. Rh1 {[%emt 0:00:06]} Nb5 {[%emt 0:00:03]} 38. Rh4 {[%emt 0:00:03] [#] Rf4 is the strong threat.} b6 $2 {[%emt 0:00:09]} (38... Kd7 39. Ng4 Rxh4 40. gxh4 Bd8) 39. axb6+ {[%emt 0:00:02] White is clearly winning.} Kxb6 {[%emt 0:00:01]} 40. Ng8 {[%emt 0:00:02]} Rxh4 {[%emt 0:00:04]} 41. gxh4 {[%emt 0:00:01]} Bf8 {[%emt 0:00:05]} 42. Nh6 {[%emt 0:00:00] Weighted Error Value: White=0.08 (flawless) /Black=0.13 (very precise)} 1-0

[Event "Susha Chess Blitz 2022"]
[Site "Shusha"]
[Date "2022.09.24"]
[Round "12"]
[White "Mamedyarov, Shakhriyar"]
[Black "Radjabov, Teimour"]
[Result "1/2-1/2"]
[ECO "C54"]
[WhiteElo "2757"]
[BlackElo "2747"]
[Annotator "TA"]
[PlyCount "27"]
[EventDate "2022.09.24"]
[EventType "tourn"]
[EventCountry "AZE"]
[SourceTitle "playchess.com"]
[Source "ChessBase"]
[SourceQuality "1"]
[TimeControl "180+2"]

{[%evp 26,27,0,0]} 1. e4 {[%emt 0:00:00]} e5 {[%emt 0:00:01]} 2. Nf3 {[%emt 0:00:01]} Nc6 {[%emt 0:00:00]} 3. Bc4 {[%emt 0:00:01]} Bc5 {[%emt 0:00:02]} 4. c3 {[%emt 0:00:01]} Nf6 {[%emt 0:00:01]} 5. d4 {[%emt 0:00:00]} exd4 {[%emt 0:00:01]} 6. cxd4 {[%emt 0:00:02]} Bb4+ {[%emt 0:00:01]} 7. Bd2 {[%emt 0:00:01]} Bxd2+ {[%emt 0:00:01]} 8. Nbxd2 {[%emt 0:00:01]} d5 {[%emt 0:00:02]} 9. exd5 {[%emt 0:00:01]} Nxd5 {[%emt 0:00:01]} 10. Qb3 {[%emt 0:00:01] [#]} Na5 $146 {[%emt 0:00:02]} ({Predecessor:} 10... Nce7 11. O-O O-O 12. Rfe1 c6 13. Ne4 Nb6 14. Bf1 h6 15. Nc5 Qc7 16. Ne5 Nbd5 17. Rad1 b6 18. Ne4 Be6 19. a3 Rad8 20. Qc2 Rfe8 21. h3 {½-½ (59) Aronian,L (2782)-Mamedyarov,S (2782) chess24.com INT 2021}) 11. Qa4+ {[%emt 0:00:01]} Nc6 {[%emt 0:00:00]} 12. Qb3 Na5 13. Qa4+ {[%emt 0:00:01]} Nc6 {[%emt 0:00:01]} 14. Qb3 {[%emt 0:00:01]} 1/2-1/2

[Event "Susha Chess Blitz 2022"]
[Site "Shusha"]
[Date "2022.09.24"]
[Round "12"]
[White "Wang, Hao"]
[Black "Vidit, Santosh Gujrathi"]
[Result "0-1"]
[ECO "C67"]
[WhiteElo "2722"]
[BlackElo "2710"]
[Annotator "TA"]
[PlyCount "52"]
[EventDate "2022.09.24"]
[EventType "tourn"]
[EventCountry "AZE"]
[SourceTitle "playchess.com"]
[Source "ChessBase"]
[SourceQuality "1"]
[TimeControl "180+2"]

{[%evp 18,52,20,20,23,10,18,11,20,-8,-8,-8,-10,-10,-7,-5,0,0,0,0,4,0,0,0,649,0,0,-132,-146,-368,-131,-546,-552,-539,-349,-29996,-29997]} 1. e4 {[%emt 0:00:02]} e5 {[%emt 0:00:01]} 2. Nf3 {[%emt 0:00:01]} Nc6 {[%emt 0:00:00]} 3. Bb5 {[%emt 0:00:01]} Nf6 {[%emt 0:00:02]} 4. O-O {[%emt 0:00:02][%cal Bh1f1,Bf1e1,Be1e5][%mdl 32]} Nxe4 {[%emt 0:00:01]} 5. Re1 {[%emt 0:00:01]} Nd6 {[%emt 0:00:01]} 6. Nxe5 {[%emt 0:00:01]} Be7 {[%emt 0:00:03][%cal Bf8e7,Be7f6,Bf6d4][%mdl 32]} 7. Bf1 {[%emt 0:00:02]} Nxe5 {[%emt 0:00:02]} 8. Rxe5 {[%emt 0:00:01]} O-O {[%emt 0:00:01]} 9. d4 {[%emt 0:00:02]} Bf6 {[%emt 0:00:03]} 10. Re1 {[%emt 0:00:02]} Re8 {[%emt 0:00:00] C67: Ruy Lopez: Berlin Defence: 4 0-0 Nxe4.} 11. Bf4 {[%emt 0:00:02]} Rxe1 {[%emt 0:00:07]} 12. Qxe1 {[%emt 0:00:02]} Ne8 {[%emt 0:00:01] The position is equal.} 13. Nc3 {[%emt 0:00:03]} Bxd4 {[%emt 0:00:05]} 14. Nd5 {[%emt 0:00:02] And now Qe4 would win.} d6 {[%emt 0:00:02]} 15. Bg5 {[%emt 0:00:04]} f6 {[%emt 0:00:04]} 16. Be3 {[%emt 0:00:02]} Bxb2 {[%emt 0:00:34]} 17. Rb1 {[%emt 0:00:02] [#]} Ba3 $5 $146 {[%emt 0:00:29][%mdl 8] An interesting novelty.} ({Predecessor:} 17... Be5 18. f4 c6 19. Nb4 Bf5 20. fxe5 fxe5 21. Rd1 Qe7 22. c4 Nf6 23. h3 Qe6 {1-0 (53) Ivanchuk,V (2686)-Lenic,L (2644) Batumi 2019}) 18. Qa5 {[%emt 0:00:09]} Bc5 {[%emt 0:00:04]} 19. Bxc5 {[%emt 0:00:03]} dxc5 {[%emt 0:00:03]} 20. Qxc5 {[%emt 0:00:01]} b6 $2 {[%emt 0:00:50][%mdl 8192] [#]} (20... Qd6 $11 21. Qxd6 cxd6) 21. Ne7+ $2 {[%emt 0:01:51]} (21. Nxb6 $1 $18 {[%mdl 512] Threatening mate with Bc4+.} Be6 22. Nxa8 Qxa8 23. Re1) 21... Kh8 $11 {[%emt 0:00:01]} 22. Ng6+ {[%emt 0:00:48]} hxg6 $17 {[%emt 0:00:01]} 23. Qf8+ {[%emt 0:00:01]} Kh7 {[%emt 0:00:01]} 24. Re1 {[%emt 0:00:14][%mdl 8192] Inhibits Be6.} (24. Bc4 $17 Be6 25. Bxe6) 24... Bf5 $19 {[%emt 0:00:26]} 25. Re7 {[%emt 0:00:08]} Qd1 {[%emt 0:00:08][%cal Of5c2]} 26. g3 $2 {[%emt 0:00:03]} (26. Rxe8 $19 Rxe8 27. Qxe8) 26... Bh3 {[%emt 0:00:03] Weighted Error Value: White=1.09/Black=0.78} 0-1

[Event "Susha Chess Blitz 2022"]
[Site "Shusha"]
[Date "2022.09.24"]
[Round "12"]
[White "Kasimdzhanov, Rustam"]
[Black "Durarbayli, Vasif"]
[Result "1/2-1/2"]
[ECO "B90"]
[WhiteElo "2670"]
[BlackElo "2628"]
[Annotator "TA"]
[PlyCount "72"]
[EventDate "2022.09.24"]
[EventType "tourn"]
[EventCountry "AZE"]
[SourceTitle "playchess.com"]
[Source "ChessBase"]
[SourceQuality "1"]
[TimeControl "180+2"]

{[%evp 21,72,9,16,28,64,66,48,44,76,48,113,105,116,66,102,45,70,10,12,0,89,-16,41,0,8,0,-4,0,58,-12,0,0,73,31,47,-175,-77,-139,-107,-100,-107,-115,-85,-76,-73,-139,-135,-153,0,-138,0,-140,0]} 1. e4 {[%emt 0:00:00]} c5 {[%emt 0:00:00]} 2. Nf3 {[%emt 0:00:02]} d6 {[%emt 0:00:00]} 3. d4 {[%emt 0:00:01]} cxd4 {[%emt 0:00:01]} 4. Nxd4 {[%emt 0:00:01]} Nf6 {[%emt 0:00:01]} 5. Nc3 a6 6. Be3 {[%emt 0:00:02]} e5 {[%emt 0:00:05]} 7. Nb3 {[%emt 0:00:02]} Be6 {[%emt 0:00:02]} 8. f3 {[%emt 0:00:02]} h5 {[%emt 0:00:01]} 9. Qd2 {[%emt 0:00:02]} Nbd7 {[%emt 0:00:01]} 10. O-O-O {[%emt 0:00:02]} Be7 {[%emt 0:00:10]} 11. Kb1 {[%emt 0:00:02]} Rc8 $1 {[%emt 0:00:16][%mdl 4] is more profitable than 11...b5 at the moment.} 12. f4 {[%emt 0:00:01] B90: Sicilian Najdorf: Unusual White 6th moves, 6 Be3 Ng4 and 6 Be3 e5.} exf4 {[%emt 0:00:16]} 13. Bxf4 {[%emt 0:00:03]} Ne5 {[%emt 0:00:01] [#]} 14. Be2 $146 {[%emt 0:00:40] White is slightly better.} ({Predecessor:} 14. Nd4 O-O 15. g3 Bg4 16. Re1 Re8 17. Be2 Qb6 18. Bxg4 Nc4 19. Qc1 Nxg4 20. Nf5 {0-1 (27) Stets,D (2391)-Kovchan,A (2536) Alushta 2003}) 14... Qb6 {[%emt 0:00:16]} 15. Rhf1 {[%emt 0:00:06]} Qb4 {[%emt 0:00:37]} (15... O-O $14) 16. a3 {[%emt 0:00:15]} Qb6 {[%emt 0:00:00]} 17. Be3 {[%emt 0:00:05]} (17. Nd4 $16) 17... Qc7 {[%emt 0:00:07]} 18. Bd4 {[%emt 0:00:01]} (18. Bg5 $16) 18... Qc6 {[%emt 0:00:15] [#]} 19. Rf4 {[%emt 0:00:11]} (19. Nc5 $1 $14) 19... b5 $11 {[%emt 0:00:18]} 20. Rdf1 {[%emt 0:00:09]} Nfd7 {[%emt 0:00:17]} (20... Qb7 $11) 21. Na5 {[%emt 0:00:34]} (21. Be3 $16) 21... Qa8 {[%emt 0:00:02]} (21... Qc7 $1 $11 22. Nb3 (22. Nd5 Bxd5 23. exd5 Bg5 $15) 22... Bg5) 22. Qe1 {[%emt 0:00:16]} h4 {[%emt 0:00:10]} 23. Qd1 {[%emt 0:00:22][%cal Oe2g4]} Bg5 {[%emt 0:00:19]} 24. R4f2 {[%emt 0:00:23]} Be7 {[%emt 0:00:06]} ({Better is} 24... O-O $11) 25. Qd2 {[%emt 0:00:15]} (25. Nd5 $14) 25... Bd8 {[%emt 0:00:12]} 26. Nb3 {[%emt 0:00:03]} Be7 {[%emt 0:00:01]} (26... O-O $11 {remains equal.}) 27. Be3 {[%emt 0:00:04]} Nf6 {[%emt 0:00:07][%cal Oc8c3]} 28. Bd3 $2 {[%emt 0:00:04] [#]} (28. Nd4 $14 {keeps the upper hand.}) 28... Nfg4 {[%emt 0:00:03]} (28... Nxd3 $19 {has better winning chances.} 29. Qxd3 Bc4) 29. Rf4 {[%emt 0:00:03]} (29. Nd4 $142) 29... Nxe3 {[%emt 0:00:01]} 30. Qxe3 {[%emt 0:00:01]} Bg5 {[%emt 0:00:01]} 31. Nd4 {[%emt 0:00:03]} Bxf4 {[%emt 0:00:07]} 32. Qxf4 {[%emt 0:00:01][%cal Oc3d5]} Qa7 {[%emt 0:00:02]} 33. Nce2 {[%emt 0:00:05]} ({White should play} 33. Nf5 Bxf5 34. exf5) 33... Qe7 $17 {[%emt 0:00:05]} 34. Nc3 {[%emt 0:00:04]} Qa7 {[%emt 0:00:02]} 35. Nce2 {[%emt 0:00:01]} Qe7 {[%emt 0:00:05]} 36. Nc3 $1 {[%emt 0:00:02] Pair of Knights!} Qa7 {[%emt 0:00:02] Weighted Error Value: White=0.37/Black=0.44} (36... O-O $17 37. Nf5 Bxf5) 1/2-1/2